bitfinex/quotes_BTCUSD_20220213
["timestamp","ask_amount","ask_price","bid_price","bid_amount"]
[1644782781317,0.34962844,42143.0,42142.0,0.02896287]
[1644782782113,0.13003874,42143.0,42142.0,0.02896287]
[1644782782971,0.0602457,42143.0,42142.0,0.02896287]
[1644782784366,0.0602457,42143.0,42142.0,0.09314114]
[1644782784567,0.00129882,42145.0,42142.0,0.14314114]
[1644782784772,0.00129882,42145.0,42143.0,0.17112364]
[1644782784774,0.0009,42145.0,42143.0,0.17112364]
[1644782784974,0.0009,42145.0,42143.0,0.2067329]
[1644782785170,0.0009,42145.0,42143.0,0.2567329]
[1644782786218,0.0009,42145.0,42144.0,0.05]
[1644782786619,0.0009,42145.0,42143.0,0.2567329]
[1644782786917,0.0009,42145.0,42144.0,0.05]
[1644782789221,0.0009,42145.0,42144.0,0.30257704]
[1644782789867,0.0009,42145.0,42144.0,0.05]
[1644782790268,0.0009,42145.0,42144.0,0.30189384]
[1644782790469,0.0009,42145.0,42144.0,0.55]
[1644782790672,0.00077236,42145.0,42144.0,0.88388]
[1644782791267,0.00077236,42145.0,42144.0,0.87388]
[1644782791466,0.00077236,42145.0,42144.0,0.24]
[1644782791669,0.00077236,42145.0,42144.0,0.05]
[1644782793372,0.03937236,42146.0,42144.0,0.05]
[1644782793614,0.03937236,42146.0,42144.0,0.1499]
[1644782793914,0.03937236,42146.0,42145.0,0.05]
[1644782794114,0.06175131,42147.0,42145.0,0.05]
[1644782794515,0.061349,42147.0,42145.0,0.05]
[1644782794714,0.061349,42147.0,42144.0,0.1499]
[1644782794915,0.061349,42147.0,42145.0,0.05]
[1644782795116,0.002,42147.0,42145.0,0.05]
[1644782795515,0.001,42147.0,42145.0,0.05]
[1644782795716,0.001,42147.0,42145.0,0.1499]
[1644782795919,0.001,42147.0,42144.0,0.05]
[1644782796316,0.001,42147.0,42145.0,0.0999]
[1644782796720,0.01,42149.0,42146.0,0.35]
[1644782796917,0.00025278,42148.0,42147.0,0.03560561]
[1644782797117,0.01,42149.0,42148.0,0.33388]
[1644782797378,0.01,42149.0,42148.0,0.57928904]
[1644782797578,0.02002413,42152.0,42148.0,0.30989773]
[1644782797781,0.05,42158.0,42151.0,0.38388]
[1644782798083,0.01,42159.0,42154.0,0.05]
[1644782798285,0.01,42159.0,42155.0,0.33388]
[1644782798586,0.01,42159.0,42158.0,0.13461123]
[1644782798779,0.01,42159.0,42158.0,0.1]
[1644782798983,0.01,42159.0,42158.0,0.05]
[1644782799378,0.01,42159.0,42157.0,0.18549613]
[1644782799780,0.01,42159.0,42157.0,0.08559613]
[1644782799982,0.01,42159.0,42157.0,0.18549613]
[1644782801418,0.01,42159.0,42158.0,0.05]
[1644782802719,0.01,42159.0,42158.0,0.0492064]
[1644782804220,0.01,42159.0,42158.0,0.3830864]
[1644782804619,0.01,42159.0,42158.0,0.0492064]
[1644782805865,0.01,42159.0,42158.0,0.3830864]
[1644782806064,0.01,42159.0,42158.0,0.0492064]
[1644782807466,0.06052836,42161.0,42158.0,0.3830864]
[1644782807666,0.00119636,42161.0,42158.0,0.3830864]
[1644782807866,0.00119636,42161.0,42160.0,0.33388]
[1644782808067,0.00160375,42161.0,42160.0,0.33388]
[1644782808563,0.05187791,42167.0,42164.0,0.15]
[1644782808564,0.00187791,42167.0,42164.0,0.15]
[1644782808866,0.00187791,42167.0,42164.0,0.1992064]
[1644782809062,0.0002486,42167.0,42164.0,0.5830864]
[1644782809264,0.109309,42177.0,42165.0,0.85]
[1644782809466,0.05,42177.0,42176.0,0.0492064]
[1644782809661,0.41602625,42188.0,42177.0,0.33710338]
[1644782809861,0.29852625,42188.0,42177.0,0.38710338]
[1644782810058,0.29852625,42188.0,42177.0,0.30832126]
[1644782810262,0.07031716,42179.0,42177.0,0.30832126]
[1644782811059,0.07031716,42179.0,42177.0,0.13776553]
[1644782811260,0.07031716,42179.0,42177.0,0.05]
[1644782811858,0.07031716,42179.0,42176.0,0.0999]
[1644782812277,0.3362845,42179.0,42176.0,0.0999]
[1644782812473,0.177956,42177.0,42176.0,0.0999]
[1644782813070,0.162796,42177.0,42176.0,0.0999]
[1644782813272,0.162796,42177.0,42176.0,0.1499]
[1644782813474,0.162796,42177.0,42176.0,0.0999]
[1644782813475,0.166237,42177.0,42176.0,0.0999]
[1644782813671,0.166147,42177.0,42176.0,0.0999]
[1644782814672,0.059327,42173.0,42165.0,0.3]
[1644782814873,0.059327,42173.0,42155.0,0.0593]
[1644782814874,0.2526,42169.0,42157.0,0.06438921]
[1644782815072,0.26274677,42163.0,42153.0,0.3721]
[1644782815271,0.0476,42162.0,42152.0,0.00041227]
[1644782815472,0.04753,42162.0,42155.0,0.02373654]
[1644782815674,0.04778394,42162.0,42160.0,0.0999]
[1644782815875,0.118685,42161.0,42160.0,0.0999]
[1644782816126,0.0476,42161.0,42160.0,0.0999]
[1644782817328,0.04746453,42161.0,42160.0,0.12363366]
[1644782817528,0.32618213,42161.0,42160.0,0.12363366]
[1644782817928,0.03746453,42161.0,42160.0,0.12363366]
[1644782818127,0.03746453,42161.0,42160.0,0.17363366]
[1644782818828,0.25928855,42162.0,42161.0,0.05]
[1644782819029,0.30663461,42162.0,42161.0,0.05]
[1644782819629,0.30663461,42162.0,42160.0,0.12363366]
[1644782819868,0.30688855,42162.0,42160.0,0.12363366]
[1644782820168,0.30663461,42162.0,42161.0,0.05]
[1644782820368,0.63855264,42162.0,42161.0,0.05]
[1644782820567,0.63855264,42162.0,42154.0,0.04747376]
[1644782820568,0.73855264,42162.0,42160.0,0.0999]
[1644782820768,0.32110834,42161.0,42160.0,0.0999]
[1644782820966,0.059351,42160.0,42159.0,0.0999]
[1644782821168,0.059351,42160.0,42143.0,0.5245]
[1644782821171,1.71208497,42160.0,42143.0,0.5245]
[1644782821368,0.059356,42151.0,42145.0,0.3]
[1644782821567,0.106457,42150.0,42145.0,0.31780641]
[1644782821769,0.0476,42150.0,42145.0,0.26780641]
[1644782822068,0.059357,42149.0,42148.0,0.0999]
[1644782822267,0.106957,42149.0,42147.0,0.0999]
[1644782822466,0.106957,42149.0,42146.0,0.24173138]
[1644782822767,0.106957,42149.0,42147.0,0.0999]
[1644782823173,0.106957,42149.0,42145.0,0.01821809]
[1644782823372,0.106957,42149.0,42145.0,0.01780641]
[1644782823624,0.106957,42149.0,42147.0,0.0999]
[1644782824721,0.097345,42149.0,42147.0,0.0999]
[1644782824922,0.097345,42149.0,42146.0,0.00041168]
[1644782825621,0.06405825,42148.0,42147.0,0.0999]
[1644782825924,0.11165825,42148.0,42147.0,0.0999]
[1644782826523,1.41432749,42148.0,42147.0,0.0999]
[1644782826722,0.11165825,42148.0,42147.0,0.0999]
[1644782826924,0.21165825,42148.0,42147.0,0.0999]
[1644782827128,0.26165825,42148.0,42147.0,0.0999]
[1644782827571,0.31181625,42148.0,42147.0,0.0999]
[1644782827772,0.21181625,42148.0,42147.0,0.0999]
[1644782827971,0.31181625,42148.0,42147.0,0.0999]
[1644782828770,0.26181625,42148.0,42147.0,0.0999]
[1644782829171,0.21181625,42148.0,42147.0,0.0999]
[1644782830070,0.22132025,42148.0,42147.0,0.0999]
[1644782830271,0.17132025,42148.0,42147.0,0.0999]
[1644782830671,0.16181625,42148.0,42147.0,0.0999]
[1644782831318,0.21181625,42148.0,42147.0,0.0999]
[1644782832818,0.6280006,42148.0,42147.0,0.0999]
[1644782833018,0.31770556,42148.0,42147.0,0.0999]
[1644782833218,0.41770556,42148.0,42147.0,0.0999]
[1644782833419,0.36770556,42148.0,42147.0,0.0999]
[1644782833619,0.41770556,42148.0,42147.0,0.0999]
[1644782834018,0.42720856,42148.0,42147.0,0.0999]
[1644782834218,0.41770556,42148.0,42147.0,0.0999]
[1644782835469,0.24503475,42147.0,42143.0,0.5245]
[1644782835667,1.3056,42146.0,42145.0,0.00025362]
[1644782835867,1.633726,42146.0,42145.0,0.00025362]
[1644782836166,0.49161531,42146.0,42145.0,0.00025362]
[1644782836366,0.375726,42146.0,42145.0,0.00025362]
[1644782836766,0.03872833,42144.0,42143.0,0.6244]
[1644782836970,0.0476,42144.0,42143.0,0.6244]
[1644782837767,0.057104,42144.0,42143.0,0.6244]
[1644782838268,0.057104,42144.0,42143.0,0.5245]
[1644782838513,0.057104,42144.0,42143.0,0.6244]
[1644782838714,0.0476,42144.0,42143.0,0.6244]
[1644782839314,0.0476,42144.0,42143.0,0.5245]
[1644782839516,0.0476,42144.0,42143.0,0.6244]
[1644782840520,0.178126,42146.0,42143.0,0.6244]
[1644782840718,0.059376,42147.0,42143.0,1.11627489]
[1644782840917,0.059376,42147.0,42144.0,0.0999]
[1644782841118,0.059376,42147.0,42143.0,0.71637489]
[1644782841317,0.059376,42147.0,42145.0,0.0999]
[1644782841716,0.049376,42147.0,42145.0,0.0999]
[1644782842369,0.049376,42147.0,42145.0,0.2499]
[1644782842769,0.049376,42147.0,42145.0,0.50682006]
[1644782842970,0.00966,42148.0,42146.0,0.47307536]
[1644782843172,0.00966,42148.0,42147.0,0.27198081]
[1644782843369,0.00966,42148.0,42146.0,0.31449862]
[1644782843571,0.00966,42148.0,42146.0,0.0999]
[1644782843971,0.128365,42148.0,42146.0,0.0999]
[1644782844172,0.128365,42148.0,42145.0,0.0003829]
[1644782845175,0.128365,42148.0,42144.0,1.81510577]
[1644782845471,0.137867,42148.0,42145.0,0.34]
[1644782846115,0.137867,42148.0,42144.0,1.81548868]
[1644782846315,0.128365,42148.0,42144.0,1.81510577]
[1644782846716,0.128365,42148.0,42144.0,1.81548868]
[1644782846919,0.118863,42148.0,42144.0,1.81548868]
[1644782847326,0.118863,42148.0,42145.0,0.40553061]
[1644782847726,0.118863,42148.0,42145.0,0.25553061]
[1644782848122,0.000158,42148.0,42147.0,0.15]
[1644782848422,0.000158,42148.0,42147.0,0.27807294]
[1644782849221,0.000158,42148.0,42145.0,0.00035889]
[1644782849423,0.000158,42148.0,42145.0,0.19035889]
[1644782849621,0.000158,42148.0,42145.0,0.44999995]
[1644782850069,0.000158,42148.0,42144.0,1.81510577]
[1644782850283,0.000158,42148.0,42146.0,0.0999]
[1644782850469,0.118862,42148.0,42146.0,0.0999]
[1644782850672,0.118862,42148.0,42145.0,1.7973]
[1644782850870,0.166462,42148.0,42146.0,0.0999]
[1644782851171,0.166462,42148.0,42145.0,1.7973]
[1644782851371,0.166462,42148.0,42146.0,0.0999]
[1644782851773,0.24092672,42147.0,42146.0,0.0999]
[1644782851972,0.24092672,42147.0,42145.0,1.8972]
[1644782853173,0.25042872,42147.0,42145.0,1.89675]
[1644782853631,0.24092672,42147.0,42145.0,1.89675]
[1644782854232,0.24092672,42147.0,42145.0,1.79685]
[1644782854433,0.166462,42148.0,42145.0,1.89675]
[1644782854632,0.118862,42148.0,42145.0,1.89675]
[1644782854832,0.118862,42148.0,42145.0,1.79685]
[1644782855234,0.118862,42148.0,42146.0,0.0999]
[1644782855834,0.118862,42148.0,42145.0,1.79685]
[1644782856035,0.000158,42148.0,42146.0,0.0999]
[1644782856236,0.059509,42148.0,42146.0,0.0999]
[1644782857272,0.069011,42148.0,42146.0,0.0999]
[1644782857566,0.009509,42148.0,42146.0,0.0999]
[1644782858168,0.06887,42148.0,42146.0,0.0999]
[1644782858366,0.009509,42148.0,42146.0,0.0999]
[1644782858969,0.009509,42148.0,42145.0,1.79723105]
[1644782859168,0.009509,42148.0,42146.0,0.0999]
[1644782859868,0.009509,42148.0,42146.0,0.28551113]
[1644782860268,0.009509,42148.0,42146.0,0.54180904]
[1644782860475,0.118934,42149.0,42147.0,0.25536373]
[1644782860476,0.00023,42149.0,42147.0,0.25536373]
[1644782860674,0.00023,42149.0,42148.0,0.34]
[1644782862121,0.00023,42149.0,42148.0,0.69]
[1644782862320,0.05025394,42160.0,42149.0,0.75]
[1644782862523,0.00025394,42161.0,42155.0,0.15]
[1644782862720,0.05933,42161.0,42155.0,0.15]
[1644782862921,0.05958394,42161.0,42155.0,0.15]
[1644782863127,0.05958394,42161.0,42159.0,0.08401804]
[1644782863322,0.05958394,42161.0,42159.0,0.18391804]
[1644782863721,0.05958394,42161.0,42159.0,0.08401804]
[1644782863922,0.05958394,42161.0,42159.0,0.18391804]
[1644782864122,0.05958394,42161.0,42159.0,0.23391804]
[1644782864968,0.06908194,42161.0,42159.0,0.23391804]
[1644782865467,0.05958394,42161.0,42159.0,0.23391804]
[1644782866266,0.05958394,42161.0,42159.0,0.45951833]
[1644782866470,0.05958394,42161.0,42160.0,0.15]
[1644782866668,0.05933,42161.0,42160.0,0.2]
[1644782867267,0.05933,42161.0,42160.0,0.46661641]
[1644782867665,0.11892194,42162.0,42160.0,0.46661641]
[1644782867867,0.11892194,42162.0,42161.0,0.05]
[1644782868067,0.118668,42162.0,42161.0,0.05]
[1644782868918,0.128166,42162.0,42161.0,0.05]
[1644782869118,0.118668,42162.0,42161.0,0.05]
[1644782869722,0.118667,42163.0,42161.0,0.05]
[1644782869723,0.11892094,42163.0,42161.0,0.31080858]
[1644782869919,0.11892094,42163.0,42161.0,0.05]
[1644782870120,0.11892094,42163.0,42162.0,0.0999]
[1644782870320,0.118667,42163.0,42162.0,0.0999]
[1644782870520,0.118667,42163.0,42162.0,0.36190765]
[1644782871321,0.118667,42163.0,42162.0,0.11769987]
[1644782871724,0.118667,42163.0,42162.0,0.0999]
[1644782872123,0.118667,42163.0,42151.0,0.28856382]
[1644782872384,0.11892094,42163.0,42155.0,0.15]
[1644782872583,0.0476,42162.0,42158.0,0.01780295]
[1644782872786,0.059338,42160.0,42158.0,0.01780295]
[1644782872983,0.059338,42160.0,42159.0,0.0999]
[1644782873183,0.059338,42160.0,42159.0,0.16764027]
[1644782873385,0.059338,42160.0,42159.0,0.35764027]
[1644782873783,0.059338,42160.0,42159.0,0.21764027]
[1644782874888,0.059338,42160.0,42159.0,0.40764027]
[1644782875087,0.059338,42160.0,42159.0,0.21764027]
[1644782875687,0.059338,42160.0,42159.0,0.1499]
[1644782875888,0.059338,42160.0,42159.0,0.3399]
[1644782876721,0.068837,42160.0,42159.0,0.3399]
[1644782877121,0.059338,42160.0,42159.0,0.3399]
[1644782877522,0.059338,42160.0,42159.0,0.1499]
[1644782879970,0.059338,42160.0,42159.0,0.3399]
[1644782880269,0.059338,42160.0,42159.0,0.1499]
[1644782882174,0.059338,42160.0,42159.0,0.2999]
[1644782882372,0.059338,42160.0,42159.0,0.1499]
[1644782882572,0.059338,42160.0,42159.0,0.2999]
[1644782883172,0.05899513,42160.0,42159.0,0.1499]
[1644782883820,0.10659513,42160.0,42159.0,0.1499]
[1644782884421,0.11609513,42160.0,42159.0,0.1499]
[1644782884621,0.11609513,42160.0,42159.0,0.0999]
[1644782884823,0.10659513,42160.0,42159.0,0.0999]
[1644782885224,0.47793811,42160.0,42159.0,0.0999]
[1644782885423,0.25659513,42160.0,42159.0,0.0999]
[1644782885622,0.50919513,42160.0,42159.0,0.0999]
[1644782886222,0.50919513,42160.0,42159.0,0.1499]
[1644782887466,1.76719513,42160.0,42159.0,0.1499]
[1644782887666,0.50919513,42160.0,42159.0,0.1499]
[1644782887866,0.59649897,42160.0,42159.0,0.1499]
[1644782888066,0.50919513,42160.0,42159.0,0.1499]
[1644782888468,0.52819813,42160.0,42159.0,0.1499]
[1644782888669,1.72669613,42160.0,42159.0,0.1499]
[1644782888870,1.76719513,42160.0,42159.0,0.1499]
[1644782889069,1.85449897,42160.0,42159.0,0.1499]
[1644782890570,1.85449897,42160.0,42152.0,0.00040642]
[1644782890769,0.059358,42156.0,42152.0,0.00040642]
[1644782891017,0.059358,42156.0,42152.0,0.00026439]
[1644782891018,0.36692536,42155.0,42152.0,0.00026439]
[1644782891216,0.178077,42154.0,42152.0,0.00026439]
[1644782891419,0.8476,42153.0,42151.0,1.79681933]
[1644782891617,0.8476,42153.0,42151.0,1.89671933]
[1644782891920,1.03490384,42153.0,42151.0,1.89671933]
[1644782892117,0.957102,42153.0,42151.0,1.89671933]
[1644782892320,1.016461,42153.0,42152.0,0.05]
[1644782892520,1.006959,42153.0,42152.0,1.8473]
[1644782892718,0.31374647,42153.0,42152.0,1.8473]
[1644782893216,0.206959,42153.0,42152.0,1.8473]
[1644782893618,1.767559,42153.0,42151.0,0.07854776]
[1644782893821,1.767559,42153.0,42136.0,0.3]
[1644782893822,1.258,42150.0,42136.0,0.3]
[1644782894023,0.2526,42137.0,42130.0,0.7852729]
[1644782894221,0.0476,42136.0,42130.0,0.5245]
[1644782894630,0.08280926,42133.0,42130.0,0.5245]
[1644782894870,0.0476,42132.0,42130.0,0.5245]
[1644782895069,0.0476,42131.0,42130.0,0.6244]
[1644782896070,0.057106,42131.0,42130.0,0.6244]
[1644782896571,0.057106,42131.0,42130.0,0.72125506]
[1644782896572,0.0476,42131.0,42130.0,0.72125506]
[1644782897172,0.0476,42131.0,42130.0,1.06125506]
[1644782897370,0.0476,42131.0,42130.0,1.11125506]
[1644782897571,0.118738,42138.0,42130.0,1.11125506]
[1644782897771,0.1891487,42143.0,42130.0,1.11125506]
[1644782897772,0.1891487,42143.0,42134.0,0.19]
[1644782897975,0.1891487,42143.0,42136.0,0.03561615]
[1644782897976,0.0476,42142.0,42136.0,0.03561615]
[1644782898174,0.12608823,42147.0,42143.0,0.31459364]
[1644782898374,0.059355,42151.0,42143.0,0.31459364]
[1644782898615,0.118711,42148.0,42145.0,0.0999]
[1644782898815,0.118711,42148.0,42146.0,0.0999]
[1644782899215,0.118711,42148.0,42146.0,0.1499]
[1644782899619,0.118711,42148.0,42146.0,0.0999]
[1644782899815,0.118711,42148.0,42146.0,0.1499]
[1644782900016,0.128213,42148.0,42146.0,0.1499]
[1644782900224,0.128213,42148.0,42146.0,0.16177095]
[1644782900618,0.009502,42148.0,42146.0,0.16177095]
[1644782900817,0.009502,42148.0,42147.0,0.15]
[1644782901017,0.009502,42148.0,42147.0,0.2]
[1644782903072,0.009502,42148.0,42147.0,0.05]
[1644782903275,0.009502,42148.0,42146.0,0.16177095]
[1644782903474,0.068853,42148.0,42146.0,0.16177095]
[1644782903974,0.068853,42148.0,42146.0,0.1499]
[1644782904175,0.068711,42148.0,42146.0,0.1499]
[1644782904575,0.068711,42148.0,42146.0,0.05]
[1644782904777,0.068711,42148.0,42145.0,0.00040551]
[1644782904973,0.059359,42147.0,42146.0,0.0999]
[1644782905475,0.059359,42147.0,42146.0,0.1499]
[1644782907719,0.068861,42147.0,42146.0,0.1499]
[1644782907920,0.068853,42148.0,42146.0,0.1499]
[1644782908119,0.068853,42148.0,42146.0,0.16177012]
[1644782908320,0.068853,42148.0,42146.0,0.31177012]
[1644782908520,0.068853,42148.0,42147.0,0.25527375]
[1644782908722,0.009502,42148.0,42147.0,0.25527375]
[1644782913066,0.05974242,42155.0,42149.0,0.01186732]
[1644782913268,0.05974242,42155.0,42154.0,0.15]
[1644782913542,0.05974242,42155.0,42154.0,0.2597291]
[1644782913740,0.059337,42155.0,42154.0,0.3097291]
[1644782914939,0.059337,42155.0,42154.0,0.56602701]
[1644782915142,0.059337,42155.0,42154.0,0.3097291]
[1644782915739,0.059337,42155.0,42154.0,0.56859874]
[1644782915939,0.059337,42155.0,42154.0,0.56596041]
[1644782916339,0.059337,42155.0,42154.0,0.3097291]
[1644782917973,0.059337,42155.0,42154.0,0.24229124]
[1644782918278,0.059337,42155.0,42153.0,0.16176741]
[1644782918874,0.059337,42155.0,42153.0,0.11176741]
[1644782919074,0.059337,42155.0,42153.0,0.16176741]
[1644782919075,0.14325771,42155.0,42153.0,0.16176741]
[1644782919475,0.15275871,42155.0,42153.0,0.06186741]
[1644782919676,0.15275871,42155.0,42153.0,0.16176741]
[1644782919875,0.14325771,42155.0,42153.0,0.16176741]
[1644782920177,0.20260471,42155.0,42153.0,0.16176741]
[1644782921038,0.20260471,42155.0,42153.0,0.11176741]
[1644782921335,0.20260471,42155.0,42153.0,0.16176741]
[1644782922340,0.20260471,42155.0,42154.0,0.15]
[1644782922543,0.20260471,42155.0,42153.0,0.06186741]
[1644782922740,0.20260471,42155.0,42153.0,0.16176741]
[1644782923342,0.118684,42155.0,42153.0,0.52221148]
[1644782923544,0.059337,42155.0,42153.0,0.51899476]
[1644782924143,0.059337,42155.0,42154.0,0.2562568]
[1644782924344,0.059337,42155.0,42154.0,0.3062568]
[1644782924543,0.059337,42155.0,42154.0,0.12139462]
[1644782924774,0.059337,42155.0,42154.0,0.07139462]
[1644782925270,0.059337,42155.0,42153.0,0.06186741]
[1644782925473,0.059337,42155.0,42154.0,0.15]
[1644782925970,0.059337,42155.0,42153.0,0.11176741]
[1644782926171,0.059337,42155.0,42153.0,0.01186741]
[1644782926371,0.059337,42155.0,42153.0,0.26176741]
[1644782926571,0.059337,42155.0,42153.0,0.16186741]
[1644782926773,0.059337,42155.0,42153.0,0.26176741]
[1644782927471,0.068837,42155.0,42153.0,0.16186741]
[1644782927671,0.068837,42155.0,42153.0,0.01186741]
[1644782927873,0.059337,42155.0,42153.0,0.01186741]
[1644782928274,0.059337,42155.0,42153.0,0.11176741]
[1644782928819,0.059337,42155.0,42153.0,0.11165785]
[1644782929019,0.059337,42155.0,42153.0,0.01175785]
[1644782929621,0.059337,42155.0,42153.0,0.0999]
[1644782929822,0.0476,42154.0,42153.0,0.1499]
[1644782930923,0.0476,42154.0,42153.0,0.14952125]
[1644782931123,0.106956,42154.0,42153.0,0.14952125]
[1644782931725,0.106956,42154.0,42153.0,0.14452125]
[1644782937423,0.106956,42154.0,42153.0,0.13210915]
[1644782938624,0.116458,42154.0,42153.0,0.13210915]
[1644782939024,0.106956,42154.0,42153.0,0.13210915]
[1644782940289,1.667556,42154.0,42153.0,0.0999]
[1644782940486,1.667556,42154.0,42148.0,0.00040484]
[1644782940487,0.059366,42152.0,42148.0,0.00040484]
[1644782940687,1.5106,42149.0,42148.0,0.00040484]
[1644782940895,1.6582,42149.0,42148.0,0.00040484]
[1644782941187,1.6582,42149.0,42136.0,0.00017349]
[1644782941188,0.07831933,42141.0,42138.0,0.00017349]
[1644782941387,0.0476,42140.0,42138.0,0.15]
[1644782941588,0.22989402,42145.0,42138.0,0.55007349]
[1644782941785,0.0476,42139.0,42138.0,2.24747349]
[1644782941988,0.0476,42139.0,42138.0,1.9473]
[1644782942190,0.0476,42145.0,42138.0,1.94747728]
[1644782942388,0.0476,42145.0,42144.0,0.06321825]
[1644782942586,0.0476,42145.0,42140.0,0.34]
[1644782942788,0.0476,42145.0,42141.0,0.05]
[1644782942988,0.0476,42145.0,42141.0,0.28524618]
[1644782943190,0.166317,42145.0,42141.0,0.28524618]
[1644782943621,0.166317,42145.0,42141.0,0.23524618]
[1644782943824,0.166317,42145.0,42143.0,0.0999]
[1644782944220,0.166317,42145.0,42142.0,0.08386555]
[1644782944420,0.166317,42145.0,42143.0,0.0999]
[1644782944821,0.166317,42145.0,42143.0,0.1499]
[1644782945222,0.166317,42145.0,42143.0,0.17364209]
[1644782945923,0.00037922,42151.0,42144.0,0.44600902]
[1644782946126,0.22608823,42155.0,42150.0,0.55826955]
[1644782946127,0.12608823,42155.0,42150.0,0.55826955]
[1644782946334,0.0476,42156.0,42153.0,0.0999]
[1644782946335,0.17368823,42156.0,42153.0,0.0999]
[1644782946623,0.12947861,42156.0,42153.0,0.0999]
[1644782946823,0.24817361,42156.0,42153.0,0.1499]
[1644782947023,0.24817361,42156.0,42154.0,0.0999]
[1644782947024,0.166295,42156.0,42154.0,0.0999]
[1644782947279,0.166295,42156.0,42155.0,0.05]
[1644782947871,0.166295,42156.0,42154.0,0.0999]
[1644782948071,0.166295,42156.0,42151.0,0.05]
[1644782948072,0.225644,42156.0,42155.0,0.05]
[1644782948474,0.166295,42156.0,42155.0,0.05]
[1644782949873,0.151224,42156.0,42155.0,0.05]
[1644782950875,0.151224,42156.0,42155.0,0.03759266]
[1644782951523,0.44277908,42156.0,42155.0,0.03759266]
[1644782952019,0.54277908,42156.0,42155.0,0.03759266]
[1644782952421,0.251224,42156.0,42155.0,0.03759266]
[1644782952821,0.151224,42156.0,42155.0,0.03759266]
[1644782953423,0.44304259,42156.0,42155.0,0.03759266]
[1644782953621,0.49230851,42156.0,42155.0,0.03759266]
[1644782953822,0.59230851,42156.0,42155.0,0.03759266]
[1644782954871,0.59230851,42156.0,42154.0,0.0999]
[1644782955070,0.44023638,42155.0,42154.0,0.0999]
[1644782955273,0.58783638,42155.0,42154.0,0.0999]
[1644782956069,1.84583638,42155.0,42154.0,0.0999]
[1644782956268,0.58783638,42155.0,42154.0,0.1499]
[1644782956469,1.97192461,42155.0,42154.0,0.1499]
[1644782956673,1.84583638,42155.0,42154.0,0.1499]
[1644782956870,0.39241223,42155.0,42154.0,0.1499]
[1644782957268,0.266324,42155.0,42154.0,0.1499]
[1644782957472,1.524324,42155.0,42154.0,0.1499]
[1644782957871,0.39241223,42155.0,42154.0,0.1499]
[1644782958273,0.275825,42155.0,42154.0,0.1499]
[1644782958514,0.4669658,42155.0,42154.0,0.1499]
[1644782958815,0.5669658,42155.0,42154.0,0.1499]
[1644782959218,1.8249658,42155.0,42154.0,0.1499]
[1644782959615,0.69305403,42155.0,42154.0,0.1499]
[1644782960015,1.8249658,42155.0,42154.0,0.1499]
[1644782960218,2.0775658,42155.0,42154.0,0.1499]
[1644782960419,2.20365403,42155.0,42154.0,0.1499]
[1644782960819,2.20365403,42155.0,42143.0,0.38067728]
[1644782960820,0.26382768,42148.0,42146.0,0.00036859]
[1644782961021,0.12735328,42147.0,42146.0,0.00036859]
[1644782961420,0.0476,42147.0,42146.0,0.00036859]
[1644782961619,0.0476,42147.0,42145.0,0.0952]
[1644782961821,0.0476,42147.0,42145.0,0.0951]
[1644782962275,0.057103,42147.0,42146.0,0.05]
[1644782962470,0.0476,42147.0,42146.0,0.05]
[1644782962670,0.106964,42147.0,42146.0,0.05]
[1644782963270,0.166325,42147.0,42146.0,0.05]
[1644782964672,0.166325,42147.0,42145.0,0.0951]
[1644782964874,0.166325,42147.0,42146.0,0.05]
[1644782965271,0.166325,42147.0,42145.0,0.0951]
[1644782965472,0.235936,42147.0,42144.0,0.0004059]
[1644782965672,0.176575,42147.0,42144.0,0.0004059]
[1644782965872,0.176575,42147.0,42145.0,0.0951]
[1644782966138,0.186077,42147.0,42144.0,0.0004059]
[1644782966336,0.176575,42147.0,42145.0,0.0951]
[1644782966738,0.176575,42147.0,42142.0,0.00017728]
[1644782966739,0.176575,42147.0,42146.0,0.05]
[1644782967141,0.176575,42147.0,42145.0,0.0951]
[1644782967142,0.235938,42147.0,42145.0,0.0951]
[1644782967340,0.235938,42147.0,42146.0,0.05]
[1644782967741,0.235938,42147.0,42145.0,0.0951]
[1644782967742,1.78802414,42147.0,42145.0,0.0951]
[1644782967941,1.67584064,42146.0,42144.0,0.0955059]
[1644782968241,1.04119094,42144.0,42141.0,0.00017728]
[1644782968439,0.26272332,42142.0,42141.0,0.00017728]
[1644782968640,0.31032332,42142.0,42140.0,1.7973]
[1644782968840,0.45620398,42142.0,42140.0,1.7973]
[1644782969042,0.45334799,42142.0,42140.0,1.7973]
[1644782969240,0.44633533,42142.0,42140.0,1.8972]
[1644782969780,0.57907932,42142.0,42140.0,1.8972]
[1644782969979,0.2526,42141.0,42140.0,1.8972]
[1644782970181,0.3002,42141.0,42140.0,1.8972]
[1644782970380,0.4002,42141.0,42140.0,1.8972]
[1644782971880,0.3002,42141.0,42140.0,1.8972]
[1644782972185,0.0476,42141.0,42140.0,1.8972]
[1644782972578,0.0476,42141.0,42140.0,1.89737728]
[1644782972778,0.059379,42142.0,42140.0,1.89737728]
[1644782972980,0.059379,42142.0,42141.0,0.19]
[1644782973178,0.059379,42142.0,42141.0,0.19017728]
[1644782973378,0.059379,42142.0,42141.0,0.44818698]
[1644782973622,0.059379,42142.0,42141.0,0.00017728]
[1644782973924,0.059379,42142.0,42141.0,0.59438699]
[1644782974121,0.059379,42142.0,42141.0,0.59420971]
[1644782974320,0.059379,42142.0,42141.0,2.39168699]
[1644782975824,0.059379,42142.0,42141.0,2.05168699]
[1644782976221,0.059379,42142.0,42141.0,2.39168699]
[1644782976422,0.059379,42142.0,42141.0,2.05168699]
[1644782976623,0.059379,42142.0,42141.0,2.39168699]
[1644782977285,0.059379,42142.0,42141.0,2.05168699]
[1644782977484,0.059379,42142.0,42141.0,2.39168699]
[1644782977680,0.059379,42142.0,42141.0,1.98747728]
[1644782978080,0.059379,42142.0,42141.0,2.13747728]
[1644782979081,0.059379,42142.0,42141.0,2.21289441]